Cogmind - Beta 13 @@@ ROGUE MODE // 2024.05.28 @ 22:01:46 Player: Enathri Result: Destroyed by G-34 Mercenary with Small Laser Performance ------------- Evolutions (1) 500 Regions Visited (4) 800 Robots Destroyed (11) 55 Value Destroyed (402) 402 Prototype IDs (0) 0 Alien Tech Used (0) 0 Bonus (200) 200 TOTAL SCORE: 1957 Bonus ------- Entered Garrisons 200 Cogmind --------- Core Integrity 0/400 Matter 300/300 Energy 250/250 System Corruption 1% Temperature Cool (6) Movement Rolling (90) Location -9/Garrison Parts ------- > --- POWER (1) -------- Ion Engine > --- PROPULSION (2) --- Wheel Compact Wheel > --- UTILITY (2) ------ Small Storage Unit Light Armor Plating > --- WEAPON (4) ------- (None) > --- INVENTORY (8) ---- Heat Sink Heat Sink Peak State ------------ > --- POWER ------------ Ion Engine > --- PROPULSION ------- Light Treads Light Treads > --- UTILITY ---------- Heat Sink Small Storage Unit > --- WEAPON ----------- EM Pulse Gun Medium Laser Assault Rifle > --- INVENTORY -------- Ion Engine Aluminum Leg Aluminum Leg Wheel Compact Wheel [Rating: 8] Favorites ----------- Power Ion Engine Engine Ion Engine Propulsion Light Treads Treads Light Treads Leg Aluminum Leg Wheel Wheel Utility Small Storage Unit Device Heat Sink Storage Small Storage Unit Protection Light Armor Plating Weapon Assault Rifle Energy Gun Medium Laser Ballistic Gun Assault Rifle Build | -11 -10 -9 -9 -9 ------- Run | Yrd Mat Mat Sto Gar Slots Evolved 2 | . . 2 . . Power . | . . . . . Propulsion . | . . . . . Utility . | . . . . . Weapon 2 | . . 2 . . Parts Attached 17 | 6 1 . 1 9 Power 2 | 1 . . . 1 Engine 2 | 1 . . . 1 Core . | . . . . . Reactor . | . . . . . Propulsion 8 | 2 . . . 6 Treads 2 | 2 . . . . Leg 3 | . . . . 3 Wheel 3 | . . . . 3 Hover . | . . . . . Flight . | . . . . . Utility 3 | 1 1 . . 1 Device 1 | . 1 . . . Storage 1 | 1 . . . . Processor . | . . . . . Hackware . | . . . . . Protection 1 | . . . . 1 Artifact . | . . . . . Weapon 4 | 2 . . 1 1 Energy Gun 2 | 1 . . 1 . Energy Cannon . | . . . . . Ballistic Gun 2 | 1 . . . 1 Ballistic Cannon . | . . . . . Launcher . | . . . . . Special Weapon . | . . . . . Impact Weapon . | . . . . . Slashing Weapon . | . . . . . Piercing Weapon . | . . . . . Special Melee Weapon . | . . . . . Unidentified Prototypes . | . . . . . Parts Lost 10 | . . . 2 8 Power 1 | . . . . 1 Propulsion 4 | . . . . 4 Utility 1 | . . . . 1 Weapon 4 | . . . 2 2 Highest Loss Streak 6 | . . . 2 6 To Critical Strikes . | . . . . . Average Slot Usage (%) 75 | . 93 77 74 48 Engine 10 | . 14 11 11 5 Treads 20 | . 28 22 22 7 Leg 2 | . . . . 8 Wheel 1 | . . . . 3 Device 7 | . 7 11 11 5 Storage 12 | . 14 11 11 11 Energy Gun 10 | . 14 11 15 2 Ballistic Gun 9 | . 14 11 4 2 Naked Turns . | . . . . . Heaviest Build 17 | 14 15 15 17 16 Greatest Support 40 | 40 40 40 40 40 Greatest Overweight (x) 1 | 1 . . . 1 Average Overweight (x) . | . . . . . Largest Inventory Capacity 8 | 8 8 8 8 8 Average Capacity 7 | 6 8 8 8 8 Most Carried 6 | 6 6 6 5 5 Average Carried 4 | 3 6 6 5 3 Final Capacity 8 | 8 8 8 8 8 Final Carried 6 | 6 6 6 5 2 Class Distribution -------------------- 96% | Mutant 3% | Gunner Dominant Class ---------------- Mutant | -10/Materials Mutant | -9/Materials Mutant | -9/Storage Mutant | -9/Garrison Resources | -11 -10 -9 -9 -9 ----------- Run | Yrd Mat Mat Sto Gar Matter Collected 358 | 240 69 . 9 40 Remotely . | . . . . . Salvage Created 445 | . 144 . 186 115 Parts 25 | . 9 . 9 7 Haulers Intercepted . | . . . . . Recyclers Shooed . | . . . . . Parts Field Recycled . | . . . . . Retrieved Matter . | . . . . . Parts Self-Destructed . | . . . . . Prevented . | . . . . . Kills | -11 -10 -9 -9 -9 ------- Run | Yrd Mat Mat Sto Gar Combat Hostiles Destroyed 10 | . 3 . 4 3 Melee 2 | . 1 . . 1 Guns 8 | . 2 . 4 2 Classes Destroyed 4 | . 2 . 1 1 Watcher 1 | . 1 . . . Grunt 6 | . 3 . 3 . Duelist 1 | . . . 1 . Sentry 3 | . . . . 3 Best Kill Streak 4 | . 2 . 4 1 Combat Bots Only 4 | . 2 . 4 1 Max Kills in Single Turn 1 | . 1 . 1 1 Gunslinging . | . . . . . Exploded . | . . . . . Melee 1 | . 1 . . 1 Uniques/NPCs Destroyed . | . . . . . Combat | -11 -10 -9 -9 -9 -------- Run | Yrd Mat Mat Sto Gar Hostile Shots Fired 141 | . 33 6 15 87 Missed 37 | . 9 1 3 24 Damage Taken 1519 | . 287 54 263 915 Core 476 | . 67 . 88 321 Absorbed by Shields . | . . . . . Core Remaining (%) 86 | 100 73 . . . Volleys Fired 45 | . 14 . 12 19 Largest 3 | . 2 . 3 2 Hottest 110 | . 70 . 110 63 Shots Fired 69 | . 28 . 19 22 Gun 69 | . 28 . 19 22 Cannon . | . . . . . Launcher . | . . . . . Special . | . . . . . Kinetic 33 | . 14 . 3 16 Thermal 18 | . 14 . 4 . Explosive . | . . . . . Electromagnetic 18 | . . . 12 6 Robot Hit Streak 12 | . 12 . 5 8 Robot Miss Streak 3 | . 3 . 2 2 Penetration Max . | . . . . . Secondary Targets 3 | . 1 . 2 . Max Gunslinging Chain 1 | . 1 . 1 . Shots Hit Robots 48 | . 19 . 14 15 Core Hits 27 | . 7 . 8 12 Critical Kills . | . . . . . Critical Parts Destroyed . | . . . . . Critical Strikes . | . . . . . Melee Attacks . | . . . . . Impact . | . . . . . Slashing . | . . . . . Piercing . | . . . . . Sneak Attacks . | . . . . . Combat Hostiles . | . . . . . Follow-up Attacks . | . . . . . Damage Inflicted 795 | . 256 . 286 253 Guns 637 | . 251 . 182 204 Cannons . | . . . . . Explosions 104 | . . . 104 . Melee . | . . . . . Ramming 54 | . 5 . . 49 Kinetic 296 | . 113 . 23 160 Thermal 293 | . 138 . 155 . Explosive . | . . . . . Electromagnetic 152 | . . . 108 44 Impact . | . . . . . Slashing . | . . . . . Piercing . | . . . . . Highest Corruption 1 | . . . 1 1 Average Corruption 1 | . . . 1 1 Corruption Purged . | . . . . . Corruption Blocked . | . . . . . Effects 3 | . . . 1 2 Parts Rejected 1 | . . . . 1 Data Loss (major) 2 | . . . 1 1 Overload Shots . | . . . . . Overflow Damage 6 | . . . 6 . Projectiles . | . . . . . Explosions 6 | . . . 6 . Melee . | . . . . . Knockbacks . | . . . . . Impact . | . . . . . Kinetic . | . . . . . Secondary . | . . . . . Self-Inflicted Damage 53 | . . . 49 4 Shots 1 | . . . 1 . Rammed 7 | . 2 . . 5 Targets Rammed 35 | . 2 . . 33 Kicked 28 | . . . . 28 Crushed . | . . . . . Highest Temperature 191 | . 191 . 39 . Average Temperature 77 | . 94 . 21 . Received Heat Transfer 534 | . 144 30 72 288 Siege Activations . | . . . . . Robots Corrupted . | . . . . . Combat Hostiles . | . . . . . Parts Fried . | . . . . . Impact Corruptions . | . . . . . Robots Melted . | . . . . . Combat Hostiles . | . . . . . Parts Melted 1 | . 1 . . . Heat Transferred 705 | . 407 . 298 . Parts Sabotaged . | . . . . . Parts Stolen . | . . . . . Parts Stripped . | . . . . . Power Chain Reactions 2 | . . . 2 . Alert | -11 -10 -9 -9 -9 ------- Run | Yrd Mat Mat Sto Gar Peak Influence 129 | . 107 59 129 118 Initial 83 | . . 44 24 83 Average 57 | . 66 46 88 78 Maximum Alert Level . | . . . . . Low Security (%) 100 | 100 100 100 100 100 Level 1 . | . . . . . Level 2 . | . . . . . Level 3 . | . . . . . Level 4 . | . . . . . Level 5 . | . . . . . High Security . | . . . . . Max Security . | . . . . . Squads Dispatched 2 | . 1 . 1 . Investigation . | . . . . . Extermination . | . . . . . Reinforcement 2 | . 1 . 1 . Assault . | . . . . . Garrison . | . . . . . Intercept . | . . . . . Searches Triggered . | . . . . . Construction Impeded . | . . . . . Haulers Reinforced . | . . . . . Active Scanning Responses . | . . . . . Cargo Convoy Interrupts . | . . . . . Stealth | -11 -10 -9 -9 -9 --------- Run | Yrd Mat Mat Sto Gar Distress Signals 3 | . 1 1 1 . Communications Jammed . | . . . . . Distress Signals . | . . . . . Times Spotted 24 | . 7 4 4 9 Peak Tracking Total 7 | . 5 4 3 7 Tactical Retreats . | . . . . . Traps | -11 -10 -9 -9 -9 ------- Run | Yrd Mat Mat Sto Gar Traps Triggered 3 | . 1 . 1 1 Indirectly . | . . . . . Trap Hack Attempts . | . . . . . Triggered . | . . . . . Disarmed . | . . . . . Reprogrammed . | . . . . . Reused . | . . . . . Traps Extracted . | . . . . . Installed . | . . . . . Triggered . | . . . . . Machines | -11 -10 -9 -9 -9 ---------- Run | Yrd Mat Mat Sto Gar Machines Disabled . | . . . . . Max in Single Turn . | . . . . . Machines Repaired . | . . . . . Machines Dismantled . | . . . . . Machines Sabotaged . | . . . . . Overloaded Fab Kills . | . . . . . Hacking | -11 -10 -9 -9 -9 --------- Run | Yrd Mat Mat Sto Gar Machines Accessed 2 | . 1 . 1 . Terminals . | . . . . . Fabricators . | . . . . . Repair Stations . | . . . . . Recycling Units 1 | . 1 . . . Scanalyzers . | . . . . . Garrison Access 1 | . . . 1 . Total Hacks 3 | . 2 . 1 . Successful 2 | . 1 . 1 . Failed 1 | . 1 . . . Catastrophic . | . . . . . Database Lockouts . | . . . . . Manual . | . . . . . Terminals . | . . . . . Fabricators . | . . . . . Repair Stations . | . . . . . Recycling Units 2 | . 2 . . . Scanalyzers . | . . . . . Garrison Access 1 | . . . 1 . Terminal Hacks . | . . . . . Fabricator Hacks . | . . . . . Repair Station Hacks . | . . . . . Recycling Unit Hacks 1 | . 1 . . . Report Inventory 1 | . 1 . . . Scanalyzer . | . . . . . Garrison Access Hacks 1 | . . . 1 . Unlock Access 1 | . . . 1 . Unauthorized Hacks . | . . . . . Terminals . | . . . . . Fabricators . | . . . . . Repair Stations . | . . . . . Recycling Units . | . . . . . Scanalyzers . | . . . . . Garrison Access . | . . . . . Data Cores Recovered . | . . . . . Used . | . . . . . Hacking Detections . | . . . . . Full Trace Events . | . . . . . Feedback Events . | . . . . . Feedback Blocked . | . . . . . Robot Schematics Acquired . | . . . . . Robots Built . | . . . . . Authchips . | . . . . . Time . | . . . . . Total Robot Build Rating . | . . . . . Part Schematics Acquired . | . . . . . Parts Built . | . . . . . Authchips . | . . . . . Time . | . . . . . Total Part Build Rating . | . . . . . Parts Repaired . | . . . . . Time . | . . . . . Parts Recycled . | . . . . . Recycled Matter . | . . . . . Retrieved Matter . | . . . . . Retrieved Components . | . . . . . Parts Scanalyzed . | . . . . . Part Schematics Acquired . | . . . . . Parts Damaged . | . . . . . Bothacking | -11 -10 -9 -9 -9 ------------ Run | Yrd Mat Mat Sto Gar Used RIF Installer . | . . . . . Robots Hacked . | . . . . . Non-combat . | . . . . . Combat . | . . . . . Robot Hacks Applied . | . . . . . Relay Couplers Released . | . . . . . Fabnet Peak Effective % . | . . . . . Robots Rewired . | . . . . . Allies Hacked . | . . . . . Hacks Repelled . | . . . . . Allies | -11 -10 -9 -9 -9 -------- Run | Yrd Mat Mat Sto Gar Total Allies . | . . . . . Largest Group . | . . . . . Highest-Rated Group . | . . . . . Highest-Rated Ally . | . . . . . Total Orders . | . . . . . Ally Attacks . | . . . . . Total Damage . | . . . . . Kills . | . . . . . Allies Corrupted . | . . . . . Allies Melted . | . . . . . Intel | -11 -10 -9 -9 -9 ------- Run | Yrd Mat Mat Sto Gar Robot Analysis Total . | . . . . . Derelict Logs Recovered . | . . . . . Drone Launches . | . . . . . Drone Recoveries . | . . . . . Exploration | -11 -10 -9 -9 -9 ------------- Run | Yrd Mat Mat Sto Gar Turns Passed 1007 | 147 350 188 79 243 Spaces Moved 551 | 87 190 117 30 127 Core 15 | 10 . . . 5 Treads 441 | 77 190 117 30 27 Legs 51 | . . . . 51 Wheels 44 | . . . . 44 Hover . | . . . . . Flight . | . . . . . Fastest Speed 50 | 50 160 160 160 90 Average Speed 148 | 151 160 160 160 117 Slowest Speed 160 | 160 160 160 160 160 Overloaded Moves . | . . . . . Propulsion Burnouts . | . . . . . Robots Hopped . | . . . . . Cave-ins Triggered . | . . . . . Exploration Rate (%) 15 | 8 32 9 8 22 Regions Visited 4 Branch Regions 1 Pre-discovered Areas . | . . . . . Known Exits Taken 1 | . . . 1 . Unknown Exits Taken 3 | 1 1 1 . . Scrap Searched . | . . . . . Spaces Dug . | . . . . . Terrain Destroyed 6 | . . . 6 . Melee . | . . . . . Projectile . | . . . . . AOE 6 | . . . 6 . Terrain Rammed . | . . . . . Walls Destroyed . | . . . . . Machines Disabled . | . . . . . Actions | -11 -10 -9 -9 -9 --------- Run | Yrd Mat Mat Sto Gar Total 658 | 99 206 118 44 191 Wait 5 | 1 . 2 2 . Move 547 | 86 189 116 29 127 Hop . | . . . . . Pick Up 8 | 6 . . . 2 Fast Attach 10 | 6 1 . . 3 Attach 7 | . . . 1 6 Detach 1 | . . . . 1 Swap . | . . . . . Drop . | . . . . . Fire 45 | . 14 . 12 19 Melee . | . . . . . Ram 3 | . . . . 3 Kick 28 | . . . . 28 Crush 4 | . 2 . . 2 Escape Stasis . | . . . . . Rewire . | . . . . . Trap . | . . . . . Miscellaneous . | . . . . . Route ------- -11/Scrapyard -10/Materials -9/Materials -9/Storage -9/Garrison History --------- Turn | Location | Event 18 | -11/Scrapyard | Discovered new exit (range 16) 148 | -11/Scrapyard | Entered Materials 301 | -10/Materials | Build established: Mutant 314 | -10/Materials | Discovered new exit (range 7) 498 | -10/Materials | Entered another Materials area 498 | -9/Materials | Evolved 2 slots: Weapon x2 548 | -9/Materials | Discovered new exit (range 6) 686 | -9/Materials | Entered Storage 761 | -9/Storage | Identified exit to Garrison 765 | -9/Storage | Entered Garrison 872 | -9/Garrison | Core integrity fell below 50% 908 | -9/Garrison | Lost 6 parts (1p2n1u2w) 944 | -9/Garrison | Core integrity fell below 20% 1003 | -9/Garrison | Triggered checkpoint 1005 | -9/Garrison | Triggered checkpoint 1008 | -9/Garrison | Destroyed by G-34 Mercenary with Small Laser Last Messages --------------- 00879_ Kicked Y-45 Defender out of the way. 00902_ Kicked Y-45 Defender. 00903_ Kicked Y-45 Defender out of the way. 00906_ Kicked Y-45 Defender. 00907_ Kicked Y-45 Defender out of the way. 00940_ Aluminum Leg destroyed. 00947_ System corrupted: Aluminum Leg rejected. 00949_ Acquired Aluminum Leg. 00954_ Kicked Y-45 Defender. 00955_ Kicked Y-45 Defender out of the way. 00955_ Aluminum Leg destroyed. 00956_ Slammed into Y-45 Defender. 00958_ Y-45 Defender destroyed. 00963_ Acquired 3 matter. 00970_ Acquired 9 matter. 00972_ Acquired Lgt. Armor Plating. 00974_ Acquired 28 matter. 00976_ Acquired Heat Sink. 01003_ Beams of light sweep through the air. An alarm sounds. Map ----- +----------------------------------------------------+ | ?????????????????????????????????????????????????? | | ?????????????????????????????????????????????????? | | ?????????????????????????????????????????????????? | | ?????????????????????????????????????????????????? | | ?????????????????????????????????????????????????? | | ?????????????????????????????????????????????????? | | ?????????????????????????????????????????????????? | | ?????????????????????????????????????????????????? | | ?????????????????????????????????????????????????? | | ?????????????????????????????????????????????????? | | ??????????????????????? ?????????????????????????? | | ??????????????????????# ????????????????????????? | | ??????????????????????# ????????????????????????? | | ??????????????????????# ????????????????????????? | | ??????????????????????# #???????? #?????????????? | | ??????????????????????# #??????? #?????????????? | | ?????????????????????## ##?"""## #?????????????? | | ?????????????????????# ? ??????????????? | | ?????????????????????# ?? ???????????????? | | ?????????????????????# ? ????????????????? | | ?????????????????????# #? #??? #????????????? | | ???????????????????### ## ## #????????????? | | ???????????????????# g "????????????? | | ???????????????????# "????????????? | | ???????????????????# "????????????? | | ???????????????????# g @ "????????????? | | ???????????????????### ## ## #????????????? | | ???????????########### ## ## #????????????? | | ???????????# ?????????? | | ???????????# ?????????? | | ???????????# ######## #????????????? | | ???????????# #??????###### ## ##????????????? | | ???????????# #???????????? #?????????????????? | | ???????????# #?????????????####?????????????????? | | ??########## #??????????????????????????????????? | | ??# #??????????????????????????????????? | | ??# #??????????????????????????????????? | | ??# ##### ###??????????????????????????????????? | | ??# #???# #????????????????????????????????????? | | ??#####???# #????????????????????????????????????? | | ?????###### #????????????????????????????????????? | | ?????#"T"## ######???????????????????????????????? | | ?????#" # %#???????????????????????????????? | | ?????###### ####%#???????????????????????????????? | | ??????????# #??#%#???????????????????????????????? | | ??????????# #??#%#???????????????????????????????? | | ??????????#%#??#%#???????????????????????????????? | | ??????????# ####%#???????????????????????????????? | | ??????????#%*= #???#######?????????????????????? | | ??????????#=# ## #???#"""""#?????????????????????? | +----------------------------------------------------+ Best States ------------- Heat Dissipation 38 Energy Generation 10 Energy Capacity 250 Matter Stores 300 Matter Capacity 300 Sight Range 16 Terrain Scan Density 10 Armor Coverage 150 Evasion (%) 55 Recoil Reduction 2 Item Schematics ----------------- None Robot Schematics ------------------ None Fabricated ------------ Nothing Alien Tech Used ----------------- None Achievements -------------- None Challenges ------------ None Game ------ Seed HypervelocityProtonMapper Manual? 0 Play Time 00:20:57 Cumulative 2.7 hours Start 2024.05.28 @ 21:39:46 End 2024.05.28 @ 22:01:46 Sessions 1 Manual Loads 0 Difficulty Rogue Special Mode None Game No. 4 Rogue 4 Adventurer 0 Explorer 0 Win Type - Total 0 Types 0/0/0/0/0/0/0/0/0 Lore% 0 Gallery% 4 Achievement% 3 Wizard Run 0 Options --------- Layout 1 ASCII 0 Keyboard 1 Movement Numpad Keybinds 0 Fullscreen 2 Font 24/Crisp Map View 50x35 Zoom Use 24% Tactical HUD 1 Map Filters NONE Filters NONE Steam 1 RUN: 916bda88-6efa-4f70-b1ce-c30cd2758c9d